bitfinex/quotes_BTCUSD_20250604
["timestamp","ask_amount","ask_price","bid_price","bid_amount"]
[1749046502060,0.12961958,104470.0,104460.0,0.04812]
[1749046502297,0.12721958,104470.0,104460.0,0.04812]
[1749046502523,0.09761283,104470.0,104460.0,0.3128943]
[1749046502763,0.09761283,104470.0,104460.0,0.21704]
[1749046502983,0.09761283,104470.0,104430.0,0.22122085]
[1749046502984,0.031,104450.0,104430.0,0.20668]
[1749046503227,0.4011,104450.0,104440.0,0.3128543]
[1749046503894,0.4017,104450.0,104440.0,0.3128543]
[1749046504121,0.0617,104450.0,104440.0,0.3128543]
[1749046505072,0.0617,104450.0,104440.0,0.3148543]
[1749046505293,0.0617,104450.0,104440.0,0.37070577]
[1749046506399,0.0617,104450.0,104440.0,0.20382577]
[1749046506618,0.0617,104450.0,104440.0,0.3168543]
[1749046507966,0.0617,104450.0,104440.0,0.3668543]
[1749046508182,0.0617,104450.0,104440.0,0.3668143]
[1749046508620,0.0617,104450.0,104440.0,0.27096]
[1749046510175,0.0617,104450.0,104440.0,0.054]
[1749046510394,0.0617,104450.0,104440.0,0.27096]
[1749046510852,0.0617,104450.0,104440.0,0.054]
[1749046511087,0.07122317,104450.0,104440.0,0.054]
[1749046511316,0.13781889,104450.0,104440.0,0.22284]
[1749046511750,0.12829572,104450.0,104440.0,0.22284]
[1749046511963,0.12829572,104450.0,104440.0,0.22084]
[1749046512395,0.10429572,104450.0,104440.0,0.22084]
[1749046512615,0.03870069,104450.0,104440.0,0.21884]
[1749046513285,0.03870069,104450.0,104440.0,0.05]
[1749046513509,0.44427519,104450.0,104440.0,0.21884]
[1749046513732,0.37870069,104450.0,104440.0,0.21884]
[1749046514558,0.37970069,104450.0,104440.0,0.21884]
[1749046514827,0.38070069,104450.0,104440.0,0.22284]
[1749046516162,0.04070069,104450.0,104440.0,0.22284]
[1749046516613,0.04070069,104450.0,104440.0,0.2708]
[1749046516820,0.07030744,104450.0,104440.0,0.2708]
[1749046517270,0.03370069,104450.0,104440.0,0.2708]
[1749046517494,0.00300069,104450.0,104440.0,0.2708]
[1749046517717,0.00300069,104450.0,104440.0,0.32178724]
[1749046518372,0.00300069,104450.0,104440.0,0.2708]
[1749046519218,0.06560069,104450.0,104440.0,0.2708]
[1749046519436,0.06560069,104450.0,104440.0,0.102]
[1749046519675,0.06560069,104450.0,104440.0,0.054]
[1749046519937,0.06560069,104450.0,104440.0,0.2708]
[1749046520167,0.06560069,104450.0,104440.0,0.102]
[1749046520381,0.06560069,104450.0,104440.0,0.2708]
[1749046521468,0.09520744,104450.0,104440.0,0.27076]
[1749046521687,0.06560069,104450.0,104440.0,0.27076]
[1749046523265,0.06560069,104450.0,104440.0,0.054]
[1749046523266,0.44616076,104450.0,104440.0,0.054]
[1749046523491,0.55835778,104450.0,104440.0,0.054]
[1749046523720,0.63631648,104450.0,104440.0,0.19391209]
[1749046523946,0.61541494,104450.0,104440.0,0.19391209]
[1749046524170,0.09260434,104450.0,104440.0,0.25761209]
[1749046524408,0.00300069,104450.0,104440.0,0.31497254]
[1749046524638,0.00888923,104470.0,104450.0,0.01454085]
[1749046524876,0.00888923,104470.0,104460.0,0.24899368]
[1749046525127,0.00888923,104470.0,104460.0,0.24660085]
[1749046525370,0.00888923,104470.0,104460.0,0.19835524]
[1749046525599,0.00888923,104470.0,104460.0,0.41511524]
[1749046525827,0.00888923,104470.0,104460.0,0.19835524]
[1749046526043,0.00888923,104470.0,104460.0,0.41511524]
[1749046526264,0.00888923,104470.0,104460.0,0.19835524]
[1749046526481,0.00888923,104470.0,104460.0,0.41511524]
[1749046526917,0.00888923,104470.0,104460.0,0.36711524]
[1749046527135,0.00888923,104470.0,104460.0,0.41907524]
[1749046527593,0.00888923,104470.0,104460.0,0.42307524]
[1749046530964,0.00888923,104470.0,104460.0,0.42303524]
[1749046531627,0.00888923,104470.0,104460.0,0.20635524]
[1749046532057,0.00888923,104470.0,104460.0,0.42303524]
[1749046534499,0.00888923,104470.0,104460.0,0.20635524]
[1749046534703,0.00888923,104470.0,104460.0,0.42303524]
[1749046535864,0.00888923,104470.0,104460.0,0.20635524]
[1749046536080,0.00888923,104470.0,104460.0,0.42299524]
[1749046537167,0.00888923,104470.0,104460.0,0.20635524]
[1749046537377,0.00888923,104470.0,104460.0,0.42299524]
[1749046540205,0.00888923,104470.0,104460.0,0.45130832]
[1749046540421,0.00088923,104470.0,104460.0,0.45130832]
[1749046543766,0.00088923,104470.0,104460.0,0.48002232]
[1749046547534,0.02357137,104480.0,104470.0,0.0612]
[1749046547758,0.02357137,104480.0,104470.0,0.20404653]
[1749046548944,0.02357137,104480.0,104470.0,0.20804653]
[1749046550049,0.02357137,104480.0,104470.0,0.20904653]
[1749046550943,0.01004209,104480.0,104470.0,0.22358738]
[1749046551372,0.01004209,104480.0,104470.0,0.63952834]
[1749046551594,0.00889295,104500.0,104490.0,0.0639]
[1749046551818,0.00889295,104500.0,104490.0,0.38403838]
[1749046552037,0.00889295,104500.0,104490.0,0.39857923]
[1749046552038,0.00903777,104500.0,104490.0,0.39857923]
[1749046553357,0.00903777,104500.0,104490.0,0.39853923]
[1749046553568,0.00903777,104500.0,104490.0,0.42792274]
[1749046553998,0.01003777,104500.0,104490.0,0.42792274]
[1749046554707,0.01003777,104500.0,104490.0,0.79662874]
[1749046554933,0.01003777,104500.0,104490.0,0.24022874]
[1749046554934,0.00903777,104500.0,104490.0,0.24022874]
[1749046555156,0.00903777,104500.0,104490.0,0.42792274]
[1749046555373,0.00903777,104500.0,104490.0,0.21152274]
[1749046555809,0.00903777,104500.0,104490.0,0.42792274]
[1749046556227,0.00903777,104500.0,104490.0,0.21252274]
[1749046556448,0.00903777,104500.0,104490.0,0.26040274]
[1749046556658,0.00903777,104500.0,104490.0,0.42892274]
[1749046556875,0.00903777,104500.0,104490.0,0.21252274]
[1749046557089,0.00903777,104500.0,104490.0,0.42768274]
[1749046558179,0.00903777,104500.0,104490.0,0.21132274]
[1749046558385,0.00903777,104500.0,104490.0,0.45638874]
[1749046558862,0.0156571,104530.0,104500.0,0.01454085]
[1749046559082,0.01613966,104530.0,104520.0,0.11039515]
[1749046559294,0.01613966,104530.0,104520.0,0.32675515]
[1749046560391,0.01913966,104530.0,104520.0,0.32675515]
[1749046560602,0.01613966,104530.0,104520.0,0.32675515]
[1749046560844,0.01613966,104530.0,104520.0,0.3901312]
[1749046561931,0.01613966,104530.0,104520.0,0.1737712]
[1749046562160,0.01613966,104530.0,104520.0,0.3900912]
[1749046562398,0.02937203,104570.0,104550.0,0.01454085]
[1749046562399,0.03,104570.0,104550.0,0.01454085]
[1749046562622,0.03,104570.0,104560.0,0.0958543]
[1749046562623,0.0613,104570.0,104560.0,0.0958543]
[1749046562830,0.0613,104570.0,104560.0,0.3121743]
[1749046562831,0.08909142,104570.0,104560.0,0.3121743]
[1749046564143,0.09209142,104570.0,104560.0,0.3121743]
[1749046565692,0.09209142,104570.0,104560.0,0.3121343]
[1749046565919,0.09209142,104570.0,104560.0,0.3441072]
[1749046566375,0.09209142,104570.0,104560.0,0.3120943]
[1749046568485,0.07709142,104570.0,104560.0,0.3120943]
[1749046569227,0.09489578,104570.0,104560.0,0.3120543]
[1749046569459,0.07709142,104570.0,104560.0,0.3120543]
[1749046569698,0.09489562,104570.0,104560.0,0.3120543]
[1749046569923,0.07709142,104570.0,104560.0,0.3516133]
[1749046570154,0.07709142,104570.0,104560.0,0.3120543]
[1749046570626,0.07709142,104570.0,104560.0,0.0958543]
[1749046570863,0.07709142,104570.0,104560.0,0.3120543]
[1749046571095,0.06209142,104570.0,104560.0,0.3120543]
[1749046571359,0.06209142,104570.0,104560.0,0.3516133]
[1749046572331,0.03079142,104570.0,104560.0,0.3516133]
[1749046573246,0.03969328,104570.0,104560.0,0.3516133]
[1749046573499,0.03969331,104570.0,104560.0,0.3516133]
[1749046573726,0.03079142,104570.0,104560.0,0.3516133]
[1749046574515,0.03969334,104570.0,104560.0,0.3516133]
[1749046574752,0.04859524,104570.0,104560.0,0.3516133]
[1749046574992,0.03969333,104570.0,104560.0,0.3516133]
[1749046575697,0.01204667,104570.0,104560.0,0.3516133]
[1749046575926,0.35172,104600.0,104560.0,0.39765415]
[1749046576149,0.01172,104600.0,104590.0,0.23359526]
[1749046576371,0.01172,104600.0,104590.0,0.26847887]
[1749046576620,0.01172,104600.0,104590.0,0.33904529]
[1749046576857,0.01172,104600.0,104590.0,0.36772529]
[1749046577315,0.01172,104600.0,104590.0,0.33970401]
[1749046577541,0.01172,104600.0,104590.0,0.55578401]
[1749046578281,0.01172,104600.0,104590.0,0.55574401]
[1749046578981,0.01172,104600.0,104590.0,0.55674401]
[1749046579488,0.01172,104600.0,104590.0,0.55974401]
[1749046579709,0.01172,104600.0,104590.0,0.56374401]
[1749046581099,0.01172,104600.0,104590.0,0.19771791]
[1749046581327,0.01172,104600.0,104590.0,0.3501543]
[1749046581544,0.01172,104600.0,104590.0,0.1818743]
[1749046581775,0.01172,104600.0,104590.0,0.3501143]
[1749046582001,0.01172,104600.0,104590.0,0.36065515]
[1749046582469,0.01172,104600.0,104590.0,0.14769515]
[1749046582690,0.01172,104600.0,104590.0,0.37838017]
[1749046582910,0.01172,104600.0,104590.0,0.37599037]
[1749046583409,0.01172,104600.0,104590.0,0.37799037]
[1749046584608,0.01172,104600.0,104590.0,0.17945037]
[1749046584886,0.01172,104600.0,104590.0,0.1485743]
[1749046585114,0.07382,104600.0,104590.0,0.1485743]
[1749046585351,0.07382,104600.0,104590.0,0.22092]
[1749046586006,0.07382,104600.0,104590.0,0.21592]
[1749046586224,0.07382,104600.0,104590.0,0.0958543]
[1749046586451,0.04322,104600.0,104590.0,0.3117743]
[1749046588088,0.0521137,104600.0,104590.0,0.3117743]
[1749046588335,0.04322,104600.0,104590.0,0.34295173]
[1749046588555,0.03922,104600.0,104590.0,0.34295173]
[1749046588770,0.03922,104600.0,104590.0,0.3117743]
[1749046588979,0.43609918,104600.0,104590.0,0.3117743]
[1749046589199,0.40942,104600.0,104590.0,0.21592]
[1749046590071,0.09609879,104600.0,104590.0,0.21592]
[1749046590297,0.03922,104600.0,104590.0,0.21592]
[1749046590535,0.03922,104600.0,104590.0,0.237512]
[1749046590782,0.00872,104600.0,104590.0,0.237512]
[1749046591007,0.0265149,104600.0,104590.0,0.237512]
[1749046591270,0.00872,104600.0,104590.0,0.237512]
[1749046591491,0.00872,104600.0,104590.0,0.3333663]
[1749046591709,0.00872,104600.0,104590.0,0.3638663]
[1749046591924,0.00872,104600.0,104590.0,0.40850715]
[1749046592605,0.00772,104600.0,104590.0,0.40850715]
[1749046593057,0.01270731,104600.0,104590.0,0.41050715]
[1749046594103,0.00772,104600.0,104590.0,0.43918715]
[1749046597926,0.00772,104600.0,104590.0,0.2087263]
[1749046598140,0.00772,104600.0,104590.0,0.3958863]
[1749046598370,0.01661532,104600.0,104590.0,0.3958863]
[1749046598783,0.01661528,104600.0,104590.0,0.3958863]
[1749046599008,0.01661527,104600.0,104590.0,0.41042715]
[1749046599442,0.00772,104600.0,104590.0,0.41042715]
[1749046599683,0.00772,104600.0,104590.0,0.24230715]
[1749046599903,0.00772,104600.0,104590.0,0.38032715]
[1749046600168,0.00772,104600.0,104590.0,0.41222715]
[1749046600610,0.01661437,104600.0,104590.0,0.41222715]
[1749046600832,0.02550886,104600.0,104590.0,0.41222715]
[1749046601049,0.02550882,104600.0,104590.0,0.41222715]
[1749046601259,0.02550883,104600.0,104590.0,0.41222715]
[1749046601478,0.01661437,104600.0,104590.0,0.41222715]
[1749046601697,0.02550814,104600.0,104590.0,0.41222715]
[1749046601915,0.02550814,104600.0,104590.0,0.19638715]
[1749046601916,0.02550835,104600.0,104590.0,0.19638715]
[1749046602134,0.01661437,104600.0,104590.0,0.41218715]
[1749046602996,0.02550791,104600.0,104590.0,0.41218715]
[1749046603218,0.02550786,104600.0,104590.0,0.41218715]
[1749046603457,0.01661437,104600.0,104590.0,0.41218715]
[1749046604107,0.02550798,104600.0,104590.0,0.41218715]
[1749046604323,0.02550771,104600.0,104590.0,0.41218715]
[1749046604531,0.01661437,104600.0,104590.0,0.61218715]
[1749046604956,0.0255075,104600.0,104590.0,0.61218715]
[1749046605190,0.01661437,104600.0,104590.0,0.61218715]
[1749046605400,0.02550856,104600.0,104590.0,0.61218715]
[1749046605614,0.02550852,104600.0,104590.0,0.61218715]
[1749046605826,0.01661437,104600.0,104590.0,0.61218715]
[1749046606780,0.02550844,104600.0,104590.0,0.61218715]
[1749046606998,0.02550854,104600.0,104590.0,0.61218715]
[1749046607207,0.01661437,104600.0,104590.0,0.61218715]
[1749046608061,0.02550848,104600.0,104590.0,0.61218715]
[1749046608269,0.01661437,104600.0,104590.0,0.61218715]
[1749046608697,0.0255085,104600.0,104590.0,0.61218715]
[1749046608911,0.01661437,104600.0,104590.0,0.61218715]
[1749046609547,0.0216014,104600.0,104590.0,0.61218715]
[1749046610180,0.0216014,104600.0,104590.0,0.64086815]
[1749046611733,0.00650209,104600.0,104590.0,0.64086815]
[1749046612181,0.00650209,104600.0,104590.0,0.66206599]
[1749046612414,0.00650209,104600.0,104590.0,0.66194599]
[1749046612845,0.00650209,104600.0,104590.0,0.44526599]
[1749046613122,0.00650209,104600.0,104590.0,0.66590599]
[1749046613336,0.00650209,104600.0,104590.0,0.64370815]
[1749046613796,0.00650209,104600.0,104590.0,0.64870815]
[1749046614234,0.00650209,104600.0,104590.0,0.48070815]
[1749046614455,0.00650209,104600.0,104590.0,0.58630815]
[1749046614885,0.00650209,104600.0,104590.0,0.61650815]
[1749046615327,0.00650209,104600.0,104590.0,0.61150815]
[1749046615771,0.00650209,104600.0,104590.0,0.60650815]
[1749046616210,0.00650209,104600.0,104590.0,0.57930815]
[1749046616637,0.00650209,104600.0,104590.0,0.41130815]
[1749046616852,0.00650209,104600.0,104590.0,0.55462715]
[1749046620746,0.00650209,104600.0,104590.0,0.38662715]
[1749046620955,0.06720209,104600.0,104590.0,0.5184543]
[1749046621633,0.03670209,104600.0,104590.0,0.5144543]
[1749046621851,0.03670209,104600.0,104590.0,0.56589973]
[1749046622076,0.37670209,104600.0,104590.0,0.56889973]
[1749046622297,0.39450221,104600.0,104590.0,0.56889973]
[1749046622518,0.37670209,104600.0,104590.0,0.56889973]
[1749046622740,0.37670209,104600.0,104590.0,0.56589973]
[1749046622968,0.62668624,104600.0,104590.0,0.203]
[1749046623186,0.44374911,104600.0,104590.0,0.36674823]
[1749046623411,0.48369353,104600.0,104590.0,0.36674823]
[1749046623636,0.55562745,104600.0,104590.0,0.18947056]
[1749046623871,0.54692091,104600.0,104590.0,0.35243056]
[1749046624093,0.49028747,104600.0,104590.0,0.35343056]
[1749046624325,0.40680209,104600.0,104590.0,0.35343056]
[1749046624541,0.40680209,104600.0,104590.0,0.40007056]
[1749046624754,0.42459338,104600.0,104590.0,0.40007056]
[1749046624962,0.40680209,104600.0,104590.0,0.40007056]
[1749046625432,0.45477938,104600.0,104590.0,0.40007056]
[1749046625655,0.52029028,104600.0,104590.0,0.40007056]
[1749046625937,0.87623792,104600.0,104590.0,0.30710342]
[1749046626154,0.60447694,104600.0,104590.0,0.35474342]
[1749046626375,0.60447694,104600.0,104590.0,0.03818465]
[1749046626376,0.58837565,104600.0,104590.0,0.03818465]
[1749046626595,0.81246556,104600.0,104590.0,0.18774465]
[1749046626823,0.01912091,104590.0,104580.0,0.04764]
[1749046627050,0.51886767,104590.0,104570.0,0.20648]
[1749046627275,0.47342861,104590.0,104580.0,0.04764]
[1749046627490,0.46453598,104590.0,104580.0,0.04764]
[1749046627709,0.48298953,104590.0,104580.0,0.04764]
[1749046627926,0.01016132,104580.0,104570.0,0.20648]
[1749046628145,0.53350927,104580.0,104570.0,0.42208]
[1749046628587,0.51438626,104580.0,104570.0,0.42208]
[1749046628810,0.50482494,104580.0,104570.0,0.42208]
[1749046629045,0.51438626,104580.0,104570.0,0.42208]
[1749046629265,0.46380072,104580.0,104570.0,0.42208]
[1749046629482,0.44601562,104580.0,104570.0,0.42208]
[1749046629924,0.44534806,104580.0,104570.0,0.42208]
[1749046630145,0.4364543,104580.0,104570.0,0.42208]
[1749046630601,0.3406,104580.0,104570.0,0.464288]
[1749046630823,0.3406,104580.0,104570.0,0.42208]
[1749046631070,0.34,104580.0,104570.0,0.42208]
[1749046631295,0.00810209,104600.0,104570.0,0.5179343]
[1749046631518,0.01699693,104600.0,104570.0,0.5796343]
[1749046631747,0.01639727,104600.0,104570.0,0.5796343]
[1749046631966,0.00750209,104600.0,104580.0,0.0958543]
[1749046632201,0.01639809,104600.0,104590.0,0.16796]
[1749046632448,0.00750209,104600.0,104590.0,0.16796]
[1749046633106,0.00850209,104600.0,104590.0,0.16796]
[1749046633329,0.00750209,104600.0,104590.0,0.16796]
[1749046633757,0.00950209,104600.0,104590.0,0.16796]
[1749046634193,0.00950209,104600.0,104590.0,0.4499379]
[1749046634419,0.00950209,104600.0,104590.0,0.44754754]
[1749046634646,0.01150209,104600.0,104590.0,0.47622654]
[1749046635138,0.00950209,104600.0,104590.0,0.47622654]
[1749046635357,0.00950209,104600.0,104590.0,0.48122654]
[1749046635789,0.00750209,104600.0,104590.0,0.48122654]
[1749046636254,0.00750209,104600.0,104590.0,0.48522654]
[1749046636503,0.00750209,104600.0,104590.0,0.48122654]
[1749046636761,0.00250209,104600.0,104590.0,0.48022654]
[1749046637017,0.00250209,104600.0,104590.0,0.31726654]
[1749046638117,0.00250209,104600.0,104590.0,0.73910654]
[1749046640719,0.00250209,104600.0,104590.0,0.66316558]
[1749046642076,0.00250209,104600.0,104590.0,0.66316558]
[1749046642957,0.07118157,104630.0,104600.0,0.01454085]
[1749046643190,0.07118157,104630.0,104620.0,0.17466466]
[1749046643191,0.07132628,104630.0,104620.0,0.17466466]
[1749046643405,0.07132628,104630.0,104620.0,0.39002466]
[1749046643844,0.07132628,104630.0,104620.0,0.41869966]
[1749046644307,0.07132628,104630.0,104620.0,0.41969966]
[1749046644560,0.07132628,104630.0,104620.0,0.46166963]
[1749046644784,0.41132628,104630.0,104620.0,0.46166963]
[1749046645211,0.41132628,104630.0,104620.0,0.46162963]
[1749046646980,0.41132628,104630.0,104620.0,0.46562963]
[1749046649907,0.41132628,104630.0,104620.0,0.25030963]
[1749046650136,0.41132628,104630.0,104620.0,0.42361966]
[1749046652322,0.41132628,104630.0,104620.0,0.20833966]
[1749046652548,0.42914251,104630.0,104620.0,0.39490466]
[1749046652766,0.41132628,104630.0,104620.0,0.39490466]
[1749046652997,0.41132628,104630.0,104620.0,0.43439513]
[1749046654990,0.07132628,104630.0,104620.0,0.46306813]
[1749046655876,0.08022831,104630.0,104620.0,0.46306813]
[1749046656108,0.07132628,104630.0,104620.0,0.46306813]
[1749046656763,0.08022782,104630.0,104620.0,0.29534813]
[1749046657037,0.08022824,104630.0,104620.0,0.29534813]
[1749046657260,0.08022747,104630.0,104620.0,0.24782813]
[1749046657481,0.07132628,104630.0,104620.0,0.46302813]
[1749046657921,0.03332628,104630.0,104620.0,0.46302813]
[1749046658601,0.03332628,104630.0,104620.0,0.43435513]
[1749046658820,0.03332628,104630.0,104620.0,0.26667513]
[1749046659041,0.03332628,104630.0,104620.0,0.43435513]
[1749046660636,0.04222029,104630.0,104620.0,0.43435513]
[1749046660865,0.03332628,104630.0,104620.0,0.43435513]
[1749046661310,0.03332628,104630.0,104620.0,0.36905513]
[1749046661539,0.03332628,104630.0,104620.0,0.32952466]
[1749046661763,0.04222421,104630.0,104620.0,0.32952466]
[1749046661978,0.03332628,104630.0,104620.0,0.32952466]
[1749046662448,0.03332628,104630.0,104620.0,0.35962466]
[1749046662689,0.04222646,104630.0,104620.0,0.43005463]
[1749046662920,0.03332628,104630.0,104620.0,0.43005463]
[1749046664131,0.04222626,104630.0,104620.0,0.43005463]
[1749046664788,0.03132628,104630.0,104620.0,0.43005463]
[1749046665004,0.01232628,104630.0,104620.0,0.43005463]
[1749046666159,0.02122586,104630.0,104620.0,0.43005463]
[1749046666376,0.01232628,104630.0,104620.0,0.43005463]
[1749046666803,0.02122747,104630.0,104620.0,0.43005463]
[1749046667023,0.02122756,104630.0,104620.0,0.43005463]
[1749046667257,0.01232628,104630.0,104620.0,0.43005463]
[1749046667471,0.02122741,104630.0,104620.0,0.43005463]
[1749046667690,0.01232628,104630.0,104620.0,0.43005463]
[1749046667934,0.02122753,104630.0,104620.0,0.43005463]
[1749046668164,0.01232628,104630.0,104620.0,0.43005463]
[1749046668385,0.02122797,104630.0,104620.0,0.45872763]
[1749046668622,0.02122797,104630.0,104620.0,0.45852763]
[1749046668844,0.01232628,104630.0,104620.0,0.45852763]
[1749046669280,0.02122661,104630.0,104620.0,0.45852763]
[1749046669510,0.02122646,104630.0,104620.0,0.45852763]
[1749046669737,0.01232628,104630.0,104620.0,0.45852763]
[1749046670416,0.02122435,104630.0,104620.0,0.45852763]
[1749046670632,0.01232628,104630.0,104620.0,0.45852763]
[1749046670839,0.02122399,104630.0,104620.0,0.45852763]
[1749046671062,0.02122389,104630.0,104620.0,0.45852763]
[1749046671323,0.0212228,104630.0,104620.0,0.45852763]
[1749046671556,0.01232628,104630.0,104620.0,0.45852763]
[1749046671772,0.01232628,104630.0,104620.0,0.45848763]
[1749046671997,0.03344988,104640.0,104620.0,0.45848763]
[1749046672222,0.03393196,104640.0,104620.0,0.45848763]
[1749046672891,0.03393196,104640.0,104620.0,0.45648763]
[1749046673108,0.03393196,104640.0,104620.0,0.45748763]
[1749046673333,0.03393196,104640.0,104620.0,0.45548763]
[1749046674010,0.03393196,104640.0,104630.0,0.0306]
[1749046674247,0.03393196,104640.0,104630.0,0.17205306]
[1749046674469,0.03393196,104640.0,104630.0,0.14145306]
[1749046674689,0.03393196,104640.0,104630.0,0.14245306]
[1749046674917,0.03393196,104640.0,104630.0,0.17315306]
[1749046678075,0.03393196,104640.0,104630.0,0.38803306]
[1749046678289,0.03393196,104640.0,104630.0,0.42033306]
[1749046679063,0.01693196,104640.0,104630.0,0.42033306]
[1749046679540,0.01693196,104640.0,104630.0,0.43487391]
[1749046679984,0.01693196,104640.0,104630.0,0.46354291]
[1749046680685,0.01693196,104640.0,104630.0,0.43483391]
[1749046681623,0.01693196,104640.0,104630.0,0.44083391]
[1749046682120,0.01693196,104640.0,104630.0,0.42629306]
[1749046684246,0.02582504,104640.0,104630.0,0.42629306]
[1749046684456,0.01693196,104640.0,104630.0,0.42629306]
[1749046685309,0.01693196,104640.0,104630.0,0.36325306]
[1749046685786,0.01693196,104640.0,104630.0,0.42805306]
[1749046686207,0.00893196,104640.0,104630.0,0.42505306]
[1749046686416,0.01782504,104640.0,104630.0,0.42505306]
[1749046686626,0.00893196,104640.0,104630.0,0.42605306]
[1749046686840,0.00893196,104640.0,104630.0,0.42305306]
[1749046687045,0.01782513,104640.0,104630.0,0.42305306]
[1749046687260,0.00893196,104640.0,104630.0,0.21025306]
[1749046687477,0.00893196,104640.0,104630.0,0.42501306]
[1749046687919,0.00893196,104640.0,104630.0,0.3794143]
[1749046688166,0.00893196,104640.0,104630.0,0.0998543]
[1749046688167,0.01782437,104640.0,104630.0,0.0998543]
[1749046688378,0.01782437,104640.0,104630.0,0.3146143]
[1749046688379,0.00953196,104640.0,104630.0,0.3146143]
[1749046689251,0.01842232,104640.0,104630.0,0.3146143]
[1749046689480,0.00953196,104640.0,104630.0,0.3146143]
[1749046689928,0.00893196,104640.0,104630.0,0.3146143]
[1749046690596,0.01782141,104640.0,104630.0,0.3146143]
[1749046690803,0.00893196,104640.0,104630.0,0.3146143]
[1749046692157,0.00893196,104640.0,104630.0,0.1472143]
[1749046692369,0.01203196,104640.0,104630.0,0.0998543]
[1749046692588,0.39237616,104640.0,104630.0,0.05136]
[1749046692813,0.39237616,104640.0,104630.0,0.21872]
[1749046693025,0.4580115,104640.0,104630.0,0.21872]
[1749046693296,0.4580105,104640.0,104630.0,0.21872]
[1749046693519,0.45800396,104640.0,104630.0,0.21872]
[1749046693982,0.07765976,104640.0,104630.0,0.05136]
[1749046694468,0.07765976,104640.0,104630.0,0.21872]
[1749046694896,0.09790051,104640.0,104630.0,0.21672]
[1749046695116,0.08901868,104640.0,104630.0,0.21672]
[1749046695348,0.09857452,104640.0,104630.0,0.17136]
[1749046695574,0.26738264,104640.0,104630.0,0.003]
[1749046695764,0.25782662,104640.0,104630.0,0.17036]
[1749046696026,0.61626421,104640.0,104630.0,0.17136]
[1749046696244,0.63204797,104640.0,104630.0,0.17136]
[1749046696455,0.82261146,104640.0,104630.0,0.17036]
[1749046696642,0.63147997,104640.0,104630.0,0.16836]
[1749046696889,0.65647078,104640.0,104630.0,0.16836]
[1749046697143,0.63803234,104640.0,104630.0,0.16836]
[1749046697370,0.61250268,104640.0,104630.0,0.16836]
[1749046697578,0.60562074,104640.0,104630.0,0.16836]
[1749046697998,0.61450034,104640.0,104630.0,0.16836]
[1749046698210,0.61450003,104640.0,104630.0,0.16836]
[1749046698440,0.60562074,104640.0,104630.0,0.16836]
[1749046698880,0.59606463,104640.0,104630.0,0.16836]
[1749046699301,0.6390555,104640.0,104630.0,0.16836]
[1749046699524,0.60562083,104640.0,104630.0,0.16836]
[1749046699762,0.0031,104620.0,104600.0,0.0472]
[1749046700214,0.0006,104610.0,104590.0,0.07594096]
[1749046700443,0.3431,104610.0,104600.0,0.0472]
[1749046700889,0.36036743,104610.0,104600.0,0.0472]
[1749046701146,0.36036743,104610.0,104600.0,0.21652]
[1749046701437,0.36036743,104610.0,104600.0,0.21452]
[1749046701683,0.11722173,104610.0,104600.0,0.0472]
[1749046701923,0.11722173,104610.0,104600.0,0.21452]
[1749046702414,0.0999543,104610.0,104600.0,0.21652]
[1749046702690,0.0041,104610.0,104600.0,0.21652]
[1749046702927,0.001,104610.0,104600.0,0.21452]
[1749046703138,0.00180886,104610.0,104600.0,0.24532]
[1749046703848,0.00180886,104610.0,104600.0,0.2807461]
[1749046704138,0.00180886,104610.0,104600.0,0.27712]
[1749046704353,0.00280886,104610.0,104600.0,0.27712]
[1749046706608,0.01168963,104610.0,104600.0,0.27708]
[1749046706835,0.00280886,104610.0,104600.0,0.3729343]
[1749046707063,0.00280886,104610.0,104600.0,0.41782183]
[1749046707980,0.00280886,104610.0,104600.0,0.3729343]
[1749046707981,0.002,104610.0,104600.0,0.3729343]
[1749046708422,0.001,104610.0,104600.0,0.3729343]
[1749046709302,0.001,104610.0,104600.0,0.3739343]
[1749046709512,0.001,104610.0,104600.0,0.2066543]
[1749046709733,0.001,104610.0,104600.0,0.3739343]
[1749046709970,0.001,104610.0,104600.0,0.3749343]
[1749046711108,0.001,104610.0,104600.0,0.0492]
[1749046711563,0.001,104610.0,104600.0,0.21644]
[1749046711800,0.0016,104610.0,104600.0,0.0492]
[1749046712020,0.0041,104610.0,104600.0,0.21644]
[1749046712243,0.0041,104610.0,104600.0,0.002]
[1749046712473,0.4399543,104610.0,104600.0,0.16824]
[1749046712689,0.4678232,104610.0,104600.0,0.001]
[1749046712916,0.4678232,104610.0,104600.0,0.21444]
[1749046713135,0.4409543,104610.0,104600.0,0.21444]
[1749046713358,0.4409543,104610.0,104600.0,0.16724]
[1749046714479,0.4409543,104610.0,104590.0,0.0472]
[1749046714739,0.4409543,104610.0,104600.0,0.16724]
[1749046715214,0.002,104610.0,104600.0,0.16724]
[1749046715471,0.001,104610.0,104600.0,0.16724]
[1749046716133,0.0968543,104610.0,104600.0,0.0472]
[1749046716493,0.0968543,104610.0,104600.0,0.2144]
[1749046716726,0.11034239,104610.0,104600.0,0.2144]
[1749046716950,0.0974543,104610.0,104600.0,0.2144]
[1749046717178,0.0984543,104610.0,104600.0,0.2144]
[1749046718494,0.0984543,104610.0,104600.0,0.0472]
[1749046718715,0.11051288,104610.0,104600.0,0.2144]
[1749046718981,0.15190114,104610.0,104600.0,0.2144]
[1749046719188,0.13278407,104610.0,104600.0,0.2144]
[1749046719629,0.1009543,104610.0,104600.0,0.0472]
[1749046719846,0.1009543,104610.0,104580.0,0.26912]
[1749046720061,0.1009543,104610.0,104600.0,0.1672]
[1749046720504,0.11051288,104610.0,104600.0,0.1672]
[1749046720714,0.1009543,104610.0,104600.0,0.1672]
[1749046721118,0.16912116,104610.0,104600.0,0.1672]
[1749046721359,0.16912116,104610.0,104590.0,0.0472]
[1749046721577,0.16912116,104610.0,104600.0,0.16716]
[1749046722252,0.16812116,104610.0,104600.0,0.16716]
[1749046722459,0.4399543,104610.0,104600.0,0.16716]
[1749046723402,0.4409543,104610.0,104600.0,0.16716]
[1749046724084,0.45051279,104610.0,104600.0,0.16716]
[1749046724302,0.4409543,104610.0,104600.0,0.16716]
[1749046725377,0.0978543,104610.0,104600.0,0.16716]
[1749046726539,0.002,104610.0,104600.0,0.22876]
[1749046726997,0.002,104610.0,104600.0,0.0616]
[1749046727234,0.002,104610.0,104600.0,0.27576]
[1749046729401,0.01087884,104610.0,104600.0,0.27576]
[1749046729615,0.001,104610.0,104600.0,0.27576]
[1749046730055,0.001,104610.0,104600.0,0.3726143]
[1749046730323,0.001,104610.0,104600.0,0.3736143]
[1749046730783,0.001,104610.0,104600.0,0.4736143]
[1749046734244,0.001,104610.0,104600.0,0.3064943]
[1749046734459,0.001,104610.0,104600.0,0.4735343]